bitfinex/quotes_BTCUSD_20251224
["timestamp","ask_amount","ask_price","bid_price","bid_amount"]
[1766573000961,0.01183607,87169.0,87161.0,0.01147302]
[1766573001187,0.36516128,87170.0,87163.0,0.01147275]
[1766573001375,0.01148,87172.0,87163.0,0.06889375]
[1766573001533,0.01148,87172.0,87164.0,0.00114714]
[1766573001737,0.01148,87172.0,87163.0,0.06889366]
[1766573002246,0.01148,87172.0,87163.0,5.723e-05]
[1766573003461,0.01148,87172.0,87164.0,0.01147262]
[1766573003681,0.01148,87172.0,87163.0,5.723e-05]
[1766573003900,0.01148,87172.0,87164.0,0.01147262]
[1766573004321,0.01148,87172.0,87163.0,5.723e-05]
[1766573004758,0.01148,87172.0,87164.0,0.01147262]
[1766573004892,0.01148,87172.0,87163.0,0.01152998]
[1766573005790,0.01148,87172.0,87164.0,0.01147262]
[1766573006003,0.01148,87172.0,87165.0,0.01147249]
[1766573006212,0.01148,87172.0,87164.0,0.01147262]
[1766573007484,0.36516128,87174.0,87164.0,0.01147262]
[1766573007664,0.01148,87173.0,87164.0,0.01147262]
[1766573007874,0.000549,87164.0,87163.0,5.723e-05]
[1766573008374,0.01147157,87172.0,87163.0,5.723e-05]
[1766573008974,0.01147183,87170.0,87163.0,2.3e-07]
[1766573009118,0.0114717,87171.0,87163.0,2.3e-07]
[1766573009346,0.01147183,87170.0,87163.0,2.3e-07]
[1766573009603,0.12194,87169.0,87163.0,2.3e-07]
[1766573010450,0.13341196,87169.0,87163.0,2.3e-07]
[1766573010855,0.12194,87167.0,87163.0,2.3e-07]
[1766573011999,0.13341223,87167.0,87163.0,2.3e-07]
[1766573012206,0.12194,87165.0,87163.0,2.3e-07]
[1766573014285,0.17930313,87164.0,87163.0,2.3e-07]
[1766573014936,0.12194,87164.0,87163.0,2.3e-07]
[1766573017342,0.01148,87168.0,87163.0,2.3e-07]
[1766573018063,0.12194,87167.0,87163.0,2.3e-07]
[1766573018202,0.19077344,87167.0,87163.0,2.3e-07]
[1766573018553,0.01147236,87166.0,87163.0,2.3e-07]
[1766573020370,0.17930247,87165.0,87163.0,2.3e-07]
[1766573021577,0.17955313,87164.0,87163.0,2.3e-07]
[1766573022408,0.17955576,87160.0,87159.0,2.3e-07]
[1766573022587,0.12219,87158.0,87147.0,0.02295486]
[1766573022804,0.12254611,87158.0,87147.0,0.08032877]
[1766573023001,0.12254611,87158.0,87148.0,0.06884799]
[1766573023559,0.12254611,87158.0,87148.0,0.01147473]
[1766573024551,0.12219,87155.0,87147.0,0.01148]
[1766573026430,0.12219,87155.0,87147.0,0.02295486]
[1766573027275,0.12219,87155.0,87147.0,0.01148]
[1766573029963,0.13366381,87155.0,87147.0,0.01148]
[1766573030289,0.12219,87155.0,87147.0,0.01148]
[1766573031300,0.12219,87155.0,87147.0,0.02295486]
[1766573031498,0.12219,87155.0,87147.0,0.01148]
[1766573032189,0.12219,87155.0,87147.0,0.02295486]
[1766573032633,0.12219,87155.0,87147.0,0.01148]
[1766573035637,0.13366381,87155.0,87147.0,0.01148]
[1766573036080,0.19103394,87154.0,87147.0,0.010988]
[1766573036258,0.13366394,87154.0,87147.0,0.010988]
[1766573038084,0.01147407,87153.0,87147.0,0.010988]
[1766573038283,0.11632,87153.0,87145.0,0.01159]
[1766573041108,0.11632,87153.0,87145.0,0.06896512]
[1766573041308,0.11632,87153.0,87146.0,0.01147499]
[1766573041872,0.11632,87153.0,87145.0,0.08044064]
[1766573042918,0.11632,87153.0,87145.0,0.01159]
[1766573044069,0.11632,87153.0,87145.0,0.02306512]
[1766573044296,0.11632,87153.0,87145.0,0.01159]
[1766573044448,0.11632,87153.0,87145.0,0.02306512]
[1766573044651,0.11632,87153.0,87145.0,0.01159]
[1766573045215,0.11632,87153.0,87145.0,0.02306512]
[1766573045411,0.11632,87153.0,87145.0,0.08044061]
[1766573045665,0.11632,87153.0,87145.0,0.02306512]
[1766573046081,0.11632,87153.0,87145.0,0.01159]
[1766573046273,0.11632,87153.0,87145.0,0.02306512]
[1766573046649,0.115771,87153.0,87147.0,0.01147486]
[1766573046852,0.115771,87153.0,87148.0,0.01147473]
[1766573047068,0.01147302,87161.0,87147.0,0.06884789]
[1766573047069,0.00039379,87157.0,87153.0,0.05737034]
[1766573047284,0.00770023,87157.0,87154.0,0.05736919]
[1766573047711,0.36532032,87160.0,87155.0,0.01147381]
[1766573047866,0.36532032,87160.0,87154.0,0.06884313]
[1766573048450,0.36532032,87160.0,87153.0,0.01153532]
[1766573049068,0.36532032,87160.0,87154.0,0.01147394]
[1766573049479,0.36532032,87160.0,87154.0,0.06884354]
[1766573050960,0.36532032,87160.0,87155.0,0.01147381]
[1766573051291,0.36532032,87160.0,87154.0,0.06884354]
[1766573051529,0.36532032,87160.0,87155.0,0.01147381]
[1766573052211,0.01148,87161.0,87155.0,0.01147381]
[1766573052468,0.01148,87161.0,87153.0,0.01153532]
[1766573052665,0.01148,87161.0,87153.0,0.06890568]
[1766573052901,0.1278,87161.0,87153.0,6.125e-05]
[1766573053111,0.05736851,87156.0,87144.0,0.06885106]
[1766573053281,0.05736851,87156.0,87142.0,0.01147552]
[1766573053282,0.06884314,87155.0,87145.0,0.01194611]
[1766573053438,0.01147381,87155.0,87145.0,0.02342123]
[1766573053640,0.01147367,87156.0,87146.0,0.01147499]
[1766573053882,0.06884141,87157.0,87146.0,0.01147499]
[1766573054045,0.01147354,87157.0,87147.0,0.01147486]
[1766573054226,0.01147354,87157.0,87146.0,0.06884988]
[1766573054426,0.01147367,87156.0,87146.0,0.01147499]
[1766573055734,0.01147381,87155.0,87147.0,0.01148]
[1766573055909,0.01165033,87155.0,87147.0,0.01148]
[1766573056515,0.06901955,87155.0,87147.0,0.01148]
[1766573057054,0.00035614,87155.0,87147.0,0.01148]
[1766573060231,0.11632,87154.0,87147.0,0.01148]
[1766573067288,0.01147446,87150.0,87143.0,0.01148]
[1766573067495,0.115428,87147.0,87143.0,0.01148]
[1766573067696,0.11494,87147.0,87143.0,0.01148]
[1766573069531,0.11494,87147.0,87143.0,0.02295539]
[1766573069731,0.11494,87147.0,87143.0,0.01148]
[1766573070115,0.09561313,87147.0,87143.0,0.01148]
[1766573070324,0.09079531,87147.0,87144.0,0.01148]
[1766573070527,0.08481949,87147.0,87144.0,0.01148]
[1766573073828,0.000488,87144.0,87137.0,0.01148]
[1766573074081,0.11985,87146.0,87139.0,0.01148]
[1766573074249,0.11985,87146.0,87137.0,0.02295618]
[1766573074466,0.11985,87146.0,87137.0,0.01148]
[1766573074614,0.11985,87146.0,87137.0,0.05740925]
[1766573074814,0.13132499,87146.0,87137.0,0.01148]
[1766573075025,0.11985,87146.0,87137.0,0.02295618]
[1766573075383,0.11985,87146.0,87138.0,0.01147604]
[1766573075585,0.11985,87146.0,87138.0,0.06885625]
[1766573075738,0.11985,87146.0,87137.0,0.02295618]
[1766573076171,0.11985,87146.0,87137.0,0.08033695]
[1766573077400,0.11985,87146.0,87138.0,0.01147604]
[1766573077575,0.11985,87146.0,87137.0,0.08033695]
[1766573078616,0.11985,87146.0,87138.0,0.06885614]
[1766573078784,0.11985,87146.0,87139.0,0.06885537]
[1766573078951,0.11985,87146.0,87140.0,0.01147578]
[1766573079156,0.11985,87146.0,87141.0,0.01147565]
[1766573080394,0.11985,87146.0,87140.0,0.06885416]
[1766573080594,0.11985,87146.0,87141.0,0.01147565]
[1766573080833,0.11985,87146.0,87140.0,0.06885416]
[1766573082757,0.11985,87146.0,87140.0,0.01147578]
[1766573084071,0.119789,87146.0,87141.0,0.01147565]
[1766573084374,0.119789,87146.0,87140.0,0.06885406]
[1766573084810,0.119789,87146.0,87140.0,0.01147578]
[1766573085268,0.119789,87146.0,87139.0,0.06885437]
[1766573085443,0.119789,87146.0,87140.0,0.01147578]
[1766573085631,0.119789,87146.0,87140.0,0.06885424]
[1766573085835,0.119789,87146.0,87141.0,0.01147565]
[1766573086218,0.119789,87146.0,87141.0,0.06885364]
[1766573086413,0.37690849,87150.0,87142.0,0.01147552]
[1766573086660,0.37690849,87150.0,87142.0,0.06885276]
[1766573086861,0.37690849,87150.0,87143.0,0.01147539]
[1766573087018,0.01148,87150.0,87143.0,0.01147539]
[1766573087236,0.01148,87150.0,87139.0,0.22951623]
[1766573087237,0.12383,87142.0,87135.0,0.01827469]
[1766573087438,0.12383,87142.0,87132.0,0.01147683]
[1766573087641,0.12383,87141.0,87133.0,0.0114767]
[1766573087844,0.12383,87141.0,87132.0,0.01147683]
[1766573088042,0.12383,87141.0,87132.0,0.06886068]
[1766573088239,0.12383,87141.0,87133.0,0.0114767]
[1766573088471,0.12383,87141.0,87132.0,0.06886075]
[1766573088638,0.12383,87141.0,87132.0,0.01147683]
[1766573089064,0.12383,87141.0,87131.0,0.06886177]
[1766573089311,0.12383,87141.0,87131.0,0.01147697]
[1766573089504,0.12383,87141.0,87131.0,0.0688617]
[1766573089669,0.12383,87141.0,87132.0,0.01147683]
[1766573090116,0.12383,87141.0,87132.0,0.06886084]
[1766573090323,0.12383,87141.0,87132.0,0.01147683]
[1766573090938,0.12383,87141.0,87131.0,0.0688617]
[1766573091094,0.12383,87141.0,87132.0,0.01147683]
[1766573091292,0.12383,87141.0,87131.0,0.0688617]
[1766573091293,0.12383,87141.0,87131.0,0.01147697]
[1766573092673,0.12383,87141.0,87130.0,0.0688613]
[1766573092869,0.13530565,87141.0,87130.0,0.0688613]
[1766573093010,0.12383,87141.0,87131.0,0.01147697]
[1766573093821,0.01147578,87140.0,87129.0,0.01148]
[1766573094047,0.01147578,87140.0,87129.0,0.02295723]
[1766573094958,0.01147591,87139.0,87129.0,0.01148]
[1766573095182,0.01147591,87139.0,87129.0,0.02295723]
[1766573096089,0.01147578,87140.0,87129.0,0.08034337]
[1766573097489,0.01147578,87140.0,87130.0,0.0114771]
[1766573097688,0.13530565,87141.0,87130.0,0.0114771]
[1766573097915,0.01147578,87140.0,87129.0,0.08034337]
[1766573098230,0.13530565,87141.0,87130.0,0.0114771]
[1766573098466,0.36542849,87140.0,87131.0,0.01147697]
[1766573098657,0.36542849,87140.0,87131.0,0.06886133]
[1766573098819,0.36542849,87140.0,87132.0,0.01147683]
[1766573098978,0.36542849,87140.0,87133.0,0.0114767]
[1766573099194,0.12383,87141.0,87134.0,0.01148]
[1766573101958,0.12383,87141.0,87134.0,0.010931]
[1766573102468,0.13530565,87141.0,87134.0,0.010931]
[1766573104433,0.01147578,87140.0,87134.0,0.010931]
[1766573105010,0.19268398,87141.0,87134.0,0.010931]
[1766573105394,0.13530565,87141.0,87134.0,0.010931]
[1766573105593,0.01147578,87140.0,87134.0,0.010931]
[1766573105795,0.13530565,87141.0,87134.0,0.010931]
[1766573107821,0.01147578,87140.0,87134.0,0.010931]
[1766573108032,0.13403578,87140.0,87134.0,0.010931]
[1766573108866,0.19141473,87140.0,87134.0,0.010931]
[1766573109028,0.12256,87140.0,87134.0,0.010931]
[1766573109424,0.13403578,87140.0,87134.0,0.010931]
[1766573110259,0.01147591,87139.0,87134.0,0.010931]
[1766573110733,0.19141474,87140.0,87134.0,0.010931]
[1766573110929,0.06885551,87139.0,87134.0,0.010931]
[1766573111413,0.01147604,87138.0,87134.0,0.010931]
[1766573112480,0.06885551,87139.0,87134.0,0.010931]
[1766573112719,0.13403578,87140.0,87134.0,0.010931]
[1766573112897,0.01147591,87139.0,87134.0,0.010931]
[1766573113533,0.19141499,87140.0,87134.0,0.010931]
[1766573113896,0.13403578,87140.0,87134.0,0.010931]
[1766573114080,0.12256,87140.0,87134.0,0.010931]
[1766573114704,0.0573765,87144.0,87140.0,0.000549]
[1766573115082,0.01147512,87145.0,87134.0,0.010931]
[1766573115083,0.05737622,87145.0,87134.0,0.010931]
[1766573115301,0.06885252,87143.0,87134.0,0.010931]
[1766573115552,0.01147565,87141.0,87135.0,0.01148]
[1766573115750,0.01147565,87141.0,87136.0,0.01148]
[1766573116508,0.0688533,87142.0,87136.0,0.01148]
[1766573116828,0.06885237,87143.0,87136.0,0.01148]
[1766573117030,0.01147539,87143.0,87136.0,0.01148]
[1766573117189,0.01147552,87142.0,87136.0,0.01148]
[1766573117395,0.06885236,87143.0,87136.0,0.01148]
[1766573117842,0.01147552,87142.0,87136.0,0.01148]
[1766573118466,0.01147552,87142.0,87132.0,0.01147683]
[1766573118672,0.01147578,87140.0,87133.0,0.01148]
[1766573118894,0.06885487,87140.0,87133.0,0.01148]
[1766573119081,0.01147565,87141.0,87133.0,0.01148]
[1766573119380,0.06885394,87141.0,87133.0,0.01148]
[1766573119553,0.01147578,87140.0,87133.0,0.01148]
[1766573119974,0.01147631,87136.0,87133.0,0.01093]
[1766573120383,0.06885844,87136.0,87133.0,0.01093]
[1766573120591,0.06885844,87136.0,87125.0,0.01148]
[1766573120592,0.01147657,87134.0,87125.0,0.01148]
[1766573120800,0.08415065,87175.0,87113.0,0.04592]
[1766573120801,0.01147828,87121.0,87113.0,0.04592]
[1766573121003,0.12256,87122.0,87114.0,0.01148]
[1766573121214,0.43429723,87123.0,87114.0,0.01148]
[1766573121215,0.12256,87121.0,87114.0,0.01148]
[1766573121416,0.122011,87121.0,87114.0,0.02295921]
[1766573121618,0.122011,87121.0,87114.0,0.01148]
[1766573122049,0.122011,87121.0,87114.0,0.01183614]
[1766573122603,0.13348928,87121.0,87114.0,0.01183614]
[1766573123036,0.13348928,87121.0,87101.0,0.22961678]
[1766573123037,1.926e-05,87114.0,87107.0,0.01148013]
[1766573123368,1.926e-05,87114.0,87108.0,0.01148]
[1766573123369,0.0003557,87114.0,87108.0,0.01148]
[1766573124434,7e-07,87114.0,87108.0,0.02296]
[1766573124637,0.12087536,87118.0,87111.0,0.0114796]
[1766573124867,0.12070136,87118.0,87111.0,0.06893923]
[1766573125062,0.12070136,87118.0,87111.0,0.01154122]
[1766573125531,0.37690559,87130.0,87115.0,0.01147907]
[1766573125701,0.37690559,87130.0,87114.0,0.01147921]
[1766573125702,0.49946849,87130.0,87119.0,0.01147855]
[1766573126257,0.49946849,87130.0,87120.0,0.05739209]
[1766573126458,0.49946849,87130.0,87121.0,0.01147828]
[1766573126945,0.01148,87132.0,87124.0,0.01147789]
[1766573127374,0.12256,87136.0,87132.0,0.000551]
[1766573127528,0.20289796,87136.0,87132.0,0.000551]
[1766573127729,0.01147657,87134.0,87123.0,0.02295802]
[1766573128329,0.37690519,87133.0,87123.0,0.02295802]
[1766573128540,0.36542849,87133.0,87123.0,0.02295802]
[1766573128761,0.36542849,87133.0,87124.0,0.01147789]
[1766573128959,0.37690519,87133.0,87123.0,0.02295802]
[1766573129159,0.36542849,87133.0,87123.0,0.02295802]
[1766573129727,0.36542849,87133.0,87124.0,0.01147789]
[1766573129932,0.36542849,87133.0,87123.0,0.02295802]
[1766573129933,0.37690519,87133.0,87123.0,0.02295802]
[1766573130500,0.36542849,87133.0,87123.0,0.02295802]
[1766573130633,0.36542849,87133.0,87124.0,0.01147789]
[1766573131275,0.36542849,87133.0,87127.0,0.01147749]
[1766573131676,0.13404,87136.0,87128.0,0.01147736]
[1766573132041,0.13404,87136.0,87128.0,0.06886389]
[1766573132209,0.01147644,87135.0,87124.0,0.01147789]
[1766573132420,0.20289816,87136.0,87125.0,0.01147776]
[1766573132623,0.12154,87135.0,87125.0,0.01147776]
[1766573133399,0.0114767,87133.0,87123.0,0.01148]
[1766573133622,0.0114767,87133.0,87123.0,0.02295802]
[1766573133822,0.01147683,87132.0,87123.0,0.01148]
[1766573134000,0.0114771,87130.0,87123.0,0.01148]
[1766573134660,0.01147723,87129.0,87123.0,0.01148]
[1766573134866,0.13301723,87129.0,87123.0,0.01148]
[1766573135065,0.000548,87123.0,87115.0,0.01147907]
[1766573135335,0.01147763,87126.0,87111.0,0.02302122]
[1766573135336,0.12154,87125.0,87111.0,0.02302122]
[1766573135544,0.13301789,87124.0,87112.0,0.01147947]
[1766573135756,0.13301789,87124.0,87113.0,0.01147934]
[1766573136166,0.13301789,87124.0,87114.0,0.01147921]
[1766573136340,0.12154,87124.0,87114.0,0.01147921]
[1766573136756,0.12154,87124.0,87115.0,0.01147907]
[1766573136960,0.12154,87124.0,87116.0,0.01148]
[1766573137283,0.13301789,87124.0,87116.0,0.01148]
[1766573137486,0.12154,87122.0,87116.0,0.01148]
[1766573137787,0.01147802,87123.0,87111.0,6.162e-05]
[1766573137788,0.12154,87116.0,87111.0,6.162e-05]
[1766573138560,0.01147802,87123.0,87111.0,0.01154122]
[1766573138766,0.0114771,87130.0,87123.0,0.001099]
[1766573138925,0.01147763,87126.0,87123.0,0.001099]
[1766573139127,0.06886582,87126.0,87117.0,0.01148]
[1766573139305,0.01147789,87124.0,87117.0,0.01148]
[1766573139516,0.01147776,87125.0,87117.0,0.01148]
[1766573139719,0.12154,87123.0,87117.0,0.01148]
[1766573140108,0.13301802,87123.0,87117.0,0.01148]
[1766573140313,0.01147815,87122.0,87117.0,0.01148]
[1766573140763,0.19040823,87123.0,87117.0,0.01148]
[1766573141384,0.13301802,87123.0,87117.0,0.01148]
[1766573141793,0.12154,87123.0,87117.0,0.01148]
[1766573143204,0.01147776,87125.0,87117.0,0.01148]
[1766573143205,0.13302,87129.0,87118.0,0.01147868]
[1766573143411,0.24100665,87135.0,87117.0,0.01148]
[1766573143412,0.05737632,87144.0,87125.0,0.12863731]
[1766573143607,0.12154,87145.0,87126.0,0.01148]
[1766573143608,0.01147618,87137.0,87126.0,0.01148]
[1766573143820,0.01147631,87136.0,87126.0,0.01148]
[1766573143967,0.01147631,87136.0,87124.0,0.01147789]
[1766573143968,0.01147697,87131.0,87124.0,0.01148]
[1766573144171,0.01147683,87132.0,87124.0,0.01148]
[1766573144411,0.01147723,87129.0,87124.0,0.01148]
[1766573144614,0.01147736,87128.0,87124.0,0.01148]
[1766573144789,0.01147723,87129.0,87124.0,0.01148]
[1766573144989,0.01147749,87127.0,87124.0,0.01148]
[1766573145228,0.06886529,87127.0,87124.0,0.01148]
[1766573145579,0.06886529,87127.0,87108.0,0.22959851]
[1766573145580,0.11877,87122.0,87108.0,0.01148]
[1766573145803,0.11877,87122.0,87114.0,0.01148]
[1766573145804,0.11877,87121.0,87114.0,0.01148]
[1766573146011,0.01147855,87119.0,87114.0,0.01148]
[1766573146156,0.11877,87118.0,87111.0,0.01154162]
[1766573146360,0.01148,87125.0,87113.0,0.01147934]
[1766573146361,0.13025,87125.0,87113.0,0.01147934]
[1766573146561,0.13025,87125.0,87118.0,0.00055]
[1766573146811,0.48992156,87148.0,87118.0,0.00055]
[1766573146812,0.01147683,87132.0,87119.0,0.01147855]
[1766573146945,0.0114771,87130.0,87119.0,0.01147855]
[1766573147160,0.0573857,87130.0,87119.0,0.01147855]
[1766573147507,0.01147763,87126.0,87117.0,0.01148]
[1766573147715,0.06886517,87127.0,87117.0,0.01148]
[1766573147942,0.01147802,87123.0,87117.0,0.01148]
[1766573148167,0.01147815,87122.0,87117.0,0.01148]
[1766573148731,0.06886819,87123.0,87117.0,0.01148]
[1766573148732,0.01147802,87123.0,87117.0,0.01148]
[1766573149143,0.01147815,87122.0,87117.0,0.01148]
[1766573149744,0.06886797,87124.0,87117.0,0.01148]
[1766573150554,0.01147802,87123.0,87117.0,0.01148]
[1766573150938,0.06886797,87124.0,87117.0,0.01148]
[1766573151141,0.01147776,87125.0,87117.0,0.01148]
[1766573151369,0.08034627,87126.0,87117.0,0.01148]
[1766573152323,0.01147789,87124.0,87117.0,0.01148]
[1766573152699,0.01147776,87125.0,87117.0,0.01148]
[1766573152906,0.08034627,87126.0,87117.0,0.01148]
[1766573153080,0.01147776,87125.0,87117.0,0.01148]
[1766573153263,0.08034627,87126.0,87117.0,0.01148]
[1766573154341,0.13024789,87124.0,87117.0,0.01148]
[1766573154574,0.11877,87124.0,87117.0,0.01148]
[1766573155212,0.13024789,87124.0,87117.0,0.01148]
[1766573155416,0.11877,87124.0,87117.0,0.01148]
[1766573157059,0.10395418,87124.0,87118.0,0.01147868]
[1766573157299,0.01147683,87132.0,87124.0,0.00055]
[1766573157300,0.01148,87127.0,87124.0,0.00055]
[1766573157706,0.01148,87127.0,87121.0,0.01147828]
[1766573157908,0.01148,87127.0,87122.0,0.01147815]
[1766573158244,0.01148,87127.0,87121.0,0.01147828]
[1766573158449,0.01148,87128.0,87120.0,0.01147842]
[1766573158760,0.01148,87128.0,87120.0,0.06887049]
[1766573158960,0.06886198,87131.0,87120.0,0.01147842]
[1766573159154,0.01148,87128.0,87120.0,0.01147842]
[1766573159359,0.01148,87128.0,87119.0,0.06887127]
[1766573159590,0.01148,87128.0,87121.0,0.01147828]
[1766573160128,0.01148,87128.0,87119.0,0.06887127]
[1766573160644,0.06886198,87131.0,87119.0,0.06887127]
[1766573160645,0.01147697,87131.0,87121.0,0.01147828]
[1766573160990,0.05781868,87197.0,87121.0,0.01147828]
[1766573160991,0.01148,87135.0,87131.0,0.00055]
[1766573161141,0.02295644,87135.0,87131.0,0.00055]
[1766573161346,0.01147657,87134.0,87124.0,0.0688671]
[1766573161546,0.01147657,87134.0,87124.0,0.01147789]
[1766573161745,0.01147657,87134.0,87124.0,0.06886734]
[1766573161954,0.02295644,87135.0,87125.0,0.01147776]
[1766573162379,0.01148,87135.0,87126.0,0.01147763]
[1766573162550,0.06886222,87135.0,87124.0,0.01147789]
[1766573162754,0.08033866,87135.0,87124.0,0.01147789]
[1766573162983,0.08033866,87135.0,87125.0,0.01147776]
[1766573163308,0.01147657,87134.0,87124.0,0.01147789]
[1766573163599,0.01147657,87134.0,87124.0,0.06886719]
[1766573163789,0.01147657,87134.0,87124.0,0.01147789]
[1766573164382,0.08033866,87135.0,87124.0,0.01147789]
[1766573164976,0.02295644,87135.0,87124.0,0.06886732]
[1766573165181,0.01148,87135.0,87124.0,0.06886732]
[1766573165381,0.01148,87135.0,87125.0,0.05738849]
[1766573165581,0.01148,87135.0,87125.0,0.06886625]
[1766573166259,0.01148,87135.0,87126.0,0.01147763]
[1766573167407,0.01148,87135.0,87126.0,0.06886552]
[1766573167613,0.01148,87136.0,87135.0,0.00055]
[1766573167823,0.01148,87139.0,87135.0,0.00055]
[1766573168020,0.01148,87139.0,87129.0,0.01147723]
[1766573168543,0.02295591,87139.0,87129.0,0.06886325]
[1766573168944,0.01148,87139.0,87130.0,0.0114771]
[1766573169145,0.01148,87140.0,87132.0,0.01147683]
[1766573169510,0.1352046,87149.0,87139.0,0.00055]
[1766573169720,0.1352046,87149.0,87138.0,0.06885622]
[1766573169721,0.01148,87148.0,87138.0,0.06885622]
[1766573170008,0.01148,87148.0,87137.0,0.06885588]
[1766573170431,0.06884976,87147.0,87135.0,0.05738189]
[1766573170613,0.06885004,87146.0,87135.0,0.06885842]
[1766573170820,0.06885012,87146.0,87135.0,0.01153806]
[1766573170979,0.01147512,87145.0,87135.0,6.162e-05]
[1766573171181,0.01147552,87142.0,87135.0,6.162e-05]
[1766573171385,0.01147565,87141.0,87135.0,6.162e-05]
[1766573171988,0.05737827,87141.0,87135.0,6.162e-05]
[1766573172221,0.06885392,87141.0,87135.0,6.162e-05]
[1766573174289,0.01147578,87140.0,87135.0,6.162e-05]
[1766573175044,0.01147604,87138.0,87135.0,6.2e-07]
[1766573175635,0.06885644,87138.0,87135.0,6.2e-07]
[1766573175833,0.06885922,87135.0,87133.0,0.00581874]
[1766573176049,0.06885922,87135.0,87117.0,0.01147881]
[1766573176050,0.05738582,87130.0,87117.0,0.01147881]
[1766573176254,0.12373,87126.0,87118.0,0.01148]
[1766573177013,0.13520763,87126.0,87118.0,0.01148]
[1766573177216,0.12373,87124.0,87118.0,0.01148]
[1766573178574,0.13520789,87124.0,87118.0,0.01148]
[1766573178786,0.06887492,87115.0,87103.0,0.01148066]
[1766573178996,0.13520855,87119.0,87103.0,0.01148066]
[1766573178997,0.19260307,87117.0,87108.0,0.01148]
[1766573179198,0.13520894,87116.0,87108.0,0.01148]
[1766573179493,0.12373,87116.0,87108.0,0.01148]
[1766573179928,0.13520894,87116.0,87108.0,0.01148]
[1766573180725,0.12373,87116.0,87108.0,0.01148]
[1766573181345,0.123181,87116.0,87109.0,0.01147987]
[1766573181506,0.01148,87120.0,87112.0,0.05739719]
[1766573181711,0.01148,87120.0,87111.0,0.0114796]
[1766573182759,0.01148,87120.0,87112.0,0.01147947]
[1766573183286,0.01148,87123.0,87114.0,0.01147921]
[1766573183498,0.02295802,87123.0,87113.0,0.01147934]
[1766573183772,0.36475456,87129.0,87114.0,0.01148]
[1766573183995,0.05738962,87124.0,87114.0,0.01148]
[1766573184177,0.01147789,87124.0,87114.0,0.02295921]
[1766573184797,0.06886623,87126.0,87115.0,0.01147907]
[1766573184969,0.06886623,87126.0,87116.0,0.01147894]
[1766573185172,0.01147776,87125.0,87115.0,0.06887438]
[1766573186083,0.06886623,87126.0,87116.0,0.01147894]
[1766573186399,0.01147776,87125.0,87115.0,0.01147907]
[1766573186604,0.01147802,87123.0,87114.0,0.01148]
[1766573186946,0.01147815,87122.0,87114.0,0.01148]
[1766573187151,0.01147802,87123.0,87114.0,0.01148]
[1766573187570,0.06886869,87123.0,87114.0,0.01148]
[1766573187780,0.06886927,87122.0,87114.0,0.01148]
[1766573188217,0.01147815,87122.0,87114.0,0.01148]
[1766573188490,0.0688691,87122.0,87114.0,0.01148]
[1766573188761,0.01147815,87122.0,87114.0,0.01148]
[1766573189111,0.01147828,87121.0,87114.0,0.01148]
[1766573189313,0.01147842,87120.0,87114.0,0.01148]
[1766573189555,0.01147855,87119.0,87114.0,0.01148]
[1766573189727,0.01147881,87117.0,87107.0,0.14011744]
[1766573189928,0.13586881,87117.0,87110.0,0.01148]
[1766573191139,0.01147921,87114.0,87110.0,0.01148]
[1766573191560,0.06887505,87115.0,87110.0,0.01148]
[1766573192125,0.19326374,87116.0,87110.0,0.01148]
[1766573192626,0.01147934,87113.0,87110.0,0.01148]
[1766573192832,0.01147947,87112.0,87105.0,0.01159]
[1766573193033,0.12439,87113.0,87105.0,0.01159]
[1766573193234,0.13586934,87113.0,87101.0,0.06888092]
[1766573193533,0.12439,87113.0,87103.0,0.01148066]
[1766573193732,0.12439,87113.0,87102.0,0.06888347]
[1766573193733,0.13586934,87113.0,87102.0,0.06888347]
[1766573194109,0.13586934,87113.0,87103.0,0.01148066]
[1766573194463,0.13586934,87113.0,87102.0,0.06888347]
[1766573195072,0.12439,87113.0,87102.0,0.06888347]
[1766573195278,0.01147947,87112.0,87101.0,0.06888092]
[1766573195503,0.0114796,87111.0,87101.0,0.0574]
[1766573195710,0.06887766,87111.0,87101.0,0.0574]
[1766573196313,0.06887766,87111.0,87098.0,0.05780541]
[1766573196314,0.01147973,87110.0,87098.0,0.05780652]
[1766573196513,0.01148013,87107.0,87099.0,0.01148]
[1766573196713,0.01147987,87109.0,87099.0,0.01148]
[1766573196714,0.12439,87106.0,87099.0,0.01148]
[1766573197176,0.12439,87106.0,87100.0,0.12863731]
[1766573200801,0.01147947,87112.0,87100.0,0.12863731]
[1766573201002,0.2410613,87115.0,87100.0,0.12863731]
[1766573201003,0.12439,87115.0,87105.0,0.05740189]
[1766573201213,0.02295921,87114.0,87101.0,0.01148092]
[1766573201442,0.0114796,87111.0,87100.0,0.12863731]
[1766573201643,0.06887704,87112.0,87101.0,0.01148092]
[1766573201853,0.06887774,87111.0,87100.0,0.14011836]
[1766573202220,0.01147973,87110.0,87100.0,0.19752358]
[1766573203365,0.01147987,87109.0,87100.0,0.12863731]
[1766573203578,0.06887842,87110.0,87100.0,0.12863731]
[1766573203731,0.01147973,87110.0,87100.0,0.14011836]
[1766573204112,0.06887769,87111.0,87100.0,0.14011836]
[1766573204345,0.06887689,87112.0,87101.0,0.01148092]
[1766573204580,0.1213,87111.0,87101.0,0.01148092]
[1766573204812,0.1327796,87111.0,87101.0,0.06888537]
[1766573205433,0.1327796,87111.0,87101.0,0.01148092]
[1766573206230,0.06887852,87110.0,87100.0,0.12863731]
[1766573207124,0.19017791,87111.0,87100.0,0.18604234]
[1766573207349,0.01147973,87110.0,87100.0,0.14011836]
[1766573207897,0.06887843,87110.0,87100.0,0.12863731]
[1766573208109,0.06887843,87110.0,87100.0,0.12535055]
[1766573208287,0.06887843,87110.0,87100.0,0.1368316]
[1766573209161,0.01147973,87110.0,87100.0,0.1368316]
[1766573210112,0.01147987,87109.0,87100.0,0.12535055]
[1766573210313,0.1213,87111.0,87104.0,0.01148052]
[1766573210442,0.1213,87111.0,87109.0,0.00055]
[1766573210868,0.1213,87111.0,87104.0,0.01148052]
[1766573211071,0.1213,87111.0,87104.0,0.06888296]
[1766573211276,0.1213,87111.0,87104.0,0.01148052]
[1766573211679,0.1213,87111.0,87105.0,0.01148039]
[1766573212007,0.1213,87111.0,87106.0,0.01148026]
[1766573212196,0.1213,87111.0,87105.0,0.01148039]
[1766573212435,0.1213,87111.0,87104.0,0.06888263]
[1766573212646,0.1213,87111.0,87105.0,0.01148039]
[1766573212856,0.01148,87113.0,87111.0,0.00055]
[1766573213059,0.01148,87113.0,87107.0,0.01148013]
[1766573213271,0.01148,87115.0,87109.0,0.01147987]
[1766573213475,0.01148,87117.0,87110.0,0.06887842]
[1766573213677,0.06886982,87121.0,87110.0,0.01147973]